bitfinex-derivatives/quotes_ETHF0:USTF0_20241229
["timestamp","ask_amount","ask_price","bid_price","bid_amount"]
[1735477756798,0.29503,3394.7,3394.3,0.4647]
[1735477757008,0.29503,3394.7,3394.6,0.29504]
[1735477758209,3.6264133,3394.8,3394.3,0.4647]
[1735477758611,3.6264133,3394.8,3394.5,0.29504]
[1735477758612,0.29504,3394.6,3394.5,0.29504]
[1735477760812,6.8342133,3394.8,3394.3,0.4647]
[1735477761113,2.6012433,3394.7,3394.6,0.29503]
[1735477762014,2.3062133,3394.7,3394.6,0.29503]
[1735477762712,2.6012433,3394.7,3394.6,0.29503]
[1735477762911,0.29503,3394.7,3394.6,0.29503]
[1735477764216,0.29502,3394.8,3394.7,0.29502]
[1735477766406,2.3062133,3394.9,3394.3,0.9115]
[1735477766605,0.29504,3394.7,3394.6,0.29503]
[1735477767719,2.3062133,3394.9,3394.3,0.4647]
[1735477768014,0.9014,3394.6,3394.3,0.4647]
[1735477768220,0.29505,3394.4,3394.3,0.75976]
[1735477769716,0.29505,3394.4,3394.3,0.4647]
[1735477772421,0.73764,3394.4,3393.9,3.2078]
[1735477772614,0.29509,3394.0,3393.9,3.2078]
[1735477772914,0.73764,3394.4,3393.5,3.6485]
[1735477772915,3.2078,3394.3,3393.5,3.6485]
[1735477773115,3.2078,3394.3,3393.5,4.0799]
[1735477773116,0.8724,3393.9,3393.5,4.0799]
[1735477773317,0.29512,3393.7,3393.5,4.37503]
[1735477773611,0.29512,3393.7,3393.6,40.8]
[1735477773913,0.29512,3393.7,3393.5,4.37503]
[1735477774221,0.29512,3393.6,3393.5,4.0799]
[1735477774421,0.29512,3393.6,3393.5,44.8799]
[1735477774720,0.29512,3393.6,3393.5,45.17503]
[1735477775611,0.29512,3393.6,3393.5,44.8799]
[1735477775812,0.29512,3393.6,3393.5,45.17503]
[1735477777613,0.4281,3393.8,3393.5,45.17503]
[1735477777814,0.29512,3393.7,3393.5,45.17503]
[1735477778220,0.29512,3393.7,3393.5,44.30293]
[1735477781120,0.29512,3393.6,3393.5,44.0078]
[1735477781719,0.29512,3393.6,3393.5,44.30293]
[1735477782821,0.29512,3393.6,3393.5,44.0078]
[1735477783827,0.29512,3393.6,3393.5,3.2078]
[1735477784920,0.29517,3393.1,3393.0,3.2078]
[1735477793228,0.4566,3393.2,3392.6,40.8]
[1735477793426,0.29519,3392.9,3392.7,0.2952]
[1735477793920,0.29518,3393.0,3392.8,0.29519]
[1735477794331,0.4234,3392.9,3392.8,0.29519]
[1735477801333,0.4234,3392.9,3392.6,40.8]
[1735477801334,0.29519,3392.8,3392.7,0.2952]
[1735477801537,0.4234,3392.9,3392.6,40.8]
[1735477801833,0.2952,3392.8,3392.6,41.09521]
[1735477802030,0.2952,3392.8,3392.6,0.29521]
[1735477802735,0.4234,3392.9,3392.5,44.9004]
[1735477802927,0.2952,3392.8,3392.7,0.2952]
[1735477803530,0.4234,3392.9,3392.5,44.9004]
[1735477803832,0.71859,3392.9,3392.8,0.29519]
[1735477804131,0.4234,3392.9,3392.8,0.29519]
[1735477804824,0.71859,3392.9,3392.8,0.29519]
[1735477809934,0.29521,3392.7,3392.6,0.2952]
[1735477812039,0.2952,3392.8,3392.7,0.2952]
[1735477812938,0.29521,3392.7,3392.6,0.29521]
[1735477814038,2.6014233,3392.7,3392.6,0.29521]
[1735477818543,2.3062133,3392.7,3392.6,0.29521]
[1735477821341,3.75747429,3392.8,3392.7,0.2952]
[1735477821738,0.2952,3392.7,3392.6,0.29521]
[1735477822438,3.75747429,3392.8,3392.7,0.2952]
[1735477822646,5.02226177,3392.9,3392.5,41.6926]
[1735477822848,0.2952,3392.8,3392.7,0.2952]
[1735477823049,5.02226177,3392.9,3392.8,0.29519]
[1735477823843,3.45854605,3392.9,3392.5,42.1182]
[1735477824044,3.45854605,3392.9,3392.8,0.29519]
[1735477824646,3.75373605,3392.9,3392.8,0.29519]
[1735477825542,0.29522,3392.6,3392.5,0.29521]
[1735477825745,0.29522,3392.5,3392.4,3.50302]
[1735477825950,1.19242,3392.5,3392.4,3.50302]
[1735477826149,0.29522,3392.5,3392.4,3.50302]
[1735477826943,0.74162,3392.5,3392.4,3.50302]
[1735477827551,0.4464,3392.5,3392.4,3.50302]
[1735477827941,3.90494605,3392.5,3392.4,0.29522]
[1735477828650,3.90494605,3392.5,3392.2,41.242]
[1735477828849,0.29523,3392.4,3392.3,0.29523]
[1735477829654,3.75377605,3392.4,3392.3,0.29523]
[1735477830550,0.29523,3392.4,3392.3,0.29523]
[1735477834053,0.29523,3392.4,3392.1,1.17]
[1735477834251,5.04526177,3392.5,3392.1,1.17]
[1735477834550,0.29525,3392.2,3392.1,41.97]
[1735477835151,0.72635,3392.2,3392.1,41.97]
[1735477835348,0.72635,3392.2,3392.1,40.8]
[1735477836643,0.72635,3392.2,3392.1,41.09525]
[1735477837049,0.72635,3392.2,3392.1,40.8]
[1735477837546,0.72635,3392.2,3392.0,0.29526]
[1735477837753,0.4311,3392.2,3391.7,5.07781341]
[1735477837945,0.4311,3392.2,3391.9,0.29527]
[1735477837946,0.29526,3392.1,3391.9,0.29527]
[1735477838457,0.29526,3392.1,3392.0,0.29526]
[1735477838851,5.02996177,3392.2,3392.0,0.29526]
[1735477839051,5.32521177,3392.2,3392.0,0.29526]
[1735477840055,5.02996177,3392.2,3392.0,0.29526]
[1735477840259,5.02996177,3392.2,3391.7,41.2423]
[1735477840457,5.02996177,3392.2,3391.7,40.8]
[1735477840458,0.29528,3391.8,3391.7,40.8]
[1735477840758,0.29528,3391.8,3391.6,3.94639]
[1735477841052,0.885,3391.7,3391.6,44.74639]
[1735477843451,2.3069459,3391.7,3391.6,44.7464]
[1735477844854,2.3069459,3392.1,3392.0,0.29526]
[1735477845160,2.3069459,3392.1,3392.0,3.50306]
[1735477846657,2.3069459,3392.3,3392.2,0.29525]
[1735477847456,2.3069459,3392.3,3392.2,1.46525]
[1735477849174,2.3069459,3393.0,3392.9,0.29519]
[1735477849862,2.3069459,3393.0,3392.9,0.71989]
[1735477850469,2.3069459,3393.0,3392.9,1.15299]
[1735477850765,3.1682459,3393.1,3393.0,0.29518]
[1735477852259,2.3069459,3393.2,3393.1,0.29517]
[1735477852862,2.3069459,3393.2,3393.1,1.46517]
[1735477853456,2.3069459,3393.3,3393.2,0.29516]
[1735477854262,2.3069459,3393.3,3393.2,1.46516]
[1735477854767,2.3069459,3393.4,3393.3,0.29515]
[1735477856169,1.8069459,3393.4,3393.3,0.29515]
[1735477856669,1.1075459,3393.4,3393.3,5.29515]
[1735477856967,0.8673459,3393.4,3393.3,5.29515]
[1735477857171,0.1679459,3393.4,3393.3,5.29515]
[1735477857470,3.46041885,3393.6,3393.5,0.29513]
[1735477857769,3.46041885,3393.6,3393.5,3.50293]
[1735477858067,0.4408,3394.3,3393.5,49.0078]
[1735477858272,0.4408,3394.3,3394.2,0.29507]
[1735477860667,0.73587,3394.3,3394.0,0.29508]
[1735477860865,0.4408,3394.3,3393.9,1.17]
[1735477861059,0.4408,3394.3,3394.2,0.29507]
[1735477864773,0.8988,3394.6,3394.1,3.2078]
[1735477865072,0.4454,3394.6,3394.5,0.29505]
[1735477866175,0.4454,3394.6,3394.1,3.2078]
[1735477866472,0.29505,3394.5,3394.2,0.29507]
[1735477866677,0.4595,3394.4,3394.2,0.29507]
[1735477867063,0.4531,3394.3,3394.2,0.29507]
[1735477867474,0.4531,3394.3,3394.2,3.50287]
[1735477870376,0.4531,3394.3,3394.2,3.2078]
[1735477870581,0.29508,3394.2,3394.0,0.29509]
[1735477870879,0.29508,3394.2,3393.9,42.26409]
[1735477871082,0.29507,3394.2,3393.9,42.26409]
[1735477871381,0.29509,3394.0,3393.9,41.969]
[1735477871774,3.6609,3394.3,3393.8,3.2078]
[1735477871975,3.6609,3394.3,3393.6,1.169]
[1735477872277,0.29511,3393.8,3393.7,40.8]
[1735477872473,0.29511,3393.8,3393.6,0.29512]
[1735477872674,0.4273,3393.7,3393.5,0.29513]
[1735477872872,0.4273,3393.7,3393.6,0.29512]
[1735477873079,0.72242,3393.7,3393.6,40.8]
[1735477873280,0.4273,3393.7,3393.1,1.169]
[1735477873679,0.4395,3393.6,3393.2,40.8]
[1735477873873,0.4395,3393.6,3393.4,0.29514]
[1735477874179,0.4395,3393.6,3393.1,0.29516]
[1735477874180,3.2078,3393.5,3393.1,0.29516]
[1735477874370,0.29514,3393.4,3393.1,0.29516]
[1735477874771,3.2078,3393.5,3393.1,40.8]
[1735477874978,0.29516,3393.2,3393.1,40.8]
[1735477875187,0.29516,3393.2,3392.9,1.46418]
[1735477875383,0.4273,3393.1,3392.9,1.169]
[1735477875586,0.4273,3393.1,3393.0,0.29518]
[1735477877588,0.4273,3393.1,3393.0,41.09518]
[1735477877991,0.4273,3393.1,3393.0,42.26518]
[1735477883283,0.449,3393.4,3393.0,41.97]
[1735477883480,0.449,3393.4,3393.3,0.29515]
[1735477885192,0.449,3393.4,3393.2,0.29515]
[1735477885688,0.449,3393.4,3393.0,41.97]
[1735477885894,0.449,3393.4,3393.2,0.29515]
[1735477886788,0.449,3393.4,3393.3,0.29515]
[1735477890784,0.74414,3393.4,3393.2,0.29515]
[1735477891694,0.29517,3393.2,3393.0,41.97]
[1735477891989,0.29517,3393.2,3393.0,42.26518]
[1735477892189,0.4497,3393.1,3393.0,42.26518]
[1735477893383,0.4497,3393.1,3393.0,40.8]
[1735477893585,0.29518,3393.0,3392.8,0.29519]
[1735477893792,0.4418,3392.9,3392.8,0.29519]
[1735477893986,0.4418,3392.9,3392.8,41.09519]
[1735477898989,0.4418,3392.9,3392.8,0.29519]
[1735477899791,0.4497,3393.1,3392.7,40.8]
[1735477900100,0.4497,3393.1,3393.0,0.29518]
[1735477900695,0.4497,3393.1,3392.7,40.8]
[1735477901002,0.4497,3393.1,3392.9,0.29518]
[1735477901003,0.74487,3393.1,3392.9,0.29518]
[1735477901701,0.4497,3393.1,3393.0,0.29518]
[1735477903506,0.449,3393.4,3393.3,0.29515]
[1735477903997,0.8758,3393.6,3393.5,0.29513]
[1735477905507,0.4437,3393.6,3393.5,0.29513]
[1735477906406,0.4321,3393.9,3393.8,0.29511]
[1735477909820,0.29513,3393.6,3393.4,0.29514]
[1735477910002,3.2078,3393.7,3393.2,1.169]
[1735477910212,3.50295,3393.3,3393.2,1.169]
[1735477910509,0.29516,3393.2,3393.1,4.62363439]
[1735477910715,0.29517,3393.1,3392.9,0.29518]
[1735477910904,0.8669,3393.2,3393.1,0.29517]
[1735477913511,0.8669,3393.2,3393.0,40.8]
[1735477913712,0.8669,3393.2,3393.0,41.09517]
[1735477915509,0.8669,3393.2,3393.0,40.8]
[1735477915712,1.16207,3393.2,3393.0,40.8]
[1735477916903,4.62248885,3393.2,3393.0,40.8]
[1735477917514,3.46041885,3393.2,3393.1,0.29517]
[1735477918013,3.46041885,3393.2,3393.1,1.17187]
[1735477919309,3.46041885,3393.2,3393.1,0.72477]
[1735477919611,3.46041885,3393.4,3393.1,0.4296]
[1735477919809,3.46041885,3393.4,3393.3,0.29515]
[1735477923613,3.46041885,3393.4,3393.3,41.09515]
[1735477928020,3.89591885,3393.5,3393.4,0.29514]
[1735477929013,4.19104885,3393.5,3393.4,0.29514]
[1735477929619,3.89591885,3393.5,3393.3,40.8]
[1735477929824,0.29514,3393.4,3393.3,40.8]
[1735477930919,0.29514,3393.4,3393.3,41.09515]
[1735477931223,5.03436177,3393.5,3393.4,0.29514]
[1735477931825,5.32950177,3393.5,3393.3,41.09514]
[1735477932525,0.73064,3393.5,3393.3,41.09514]
[1735477933026,0.73064,3393.5,3393.4,0.29514]
[1735477935526,0.4355,3393.5,3393.3,40.8]
[1735477935827,0.29514,3393.4,3393.3,40.8]
[1735477937627,0.4355,3393.5,3393.0,1.169]
[1735477937628,0.29517,3393.1,3393.0,1.46417]
[1735477938031,0.29517,3393.1,3393.0,42.26417]
[1735477938419,0.29517,3393.1,3393.0,41.969]
[1735477938618,0.29517,3393.1,3393.0,42.26418]
[1735477938830,0.29517,3393.1,3393.0,41.969]
[1735477939028,3.46083824,3393.2,3392.9,3.2078]
[1735477939224,1.17858,3393.0,3392.9,3.2078]
[1735477940733,0.29519,3392.8,3392.7,40.8]
[1735477941233,0.8834,3393.0,3392.4,9.00737183]
[1735477941423,0.8834,3393.0,3392.6,0.29521]
[1735477941628,0.2952,3392.7,3392.6,0.29521]
[1735477941831,0.2952,3392.7,3392.5,41.09522]
[1735477942026,0.4453,3392.6,3392.5,41.09522]
[1735477942828,0.74051,3392.6,3392.5,40.8]
[1735477943033,0.29522,3392.5,3392.4,3.2078]
[1735477943335,0.74092,3392.5,3392.4,3.2078]
[1735477943527,1.20192,3392.5,3392.4,3.2078]
[1735477944933,0.29523,3392.4,3392.3,4.63057183]
[1735477945132,0.4453,3392.6,3392.3,3.2078]
[1735477945333,3.90544498,3392.8,3392.3,3.2078]
[1735477945625,3.90544498,3392.8,3392.7,0.2952]
[1735477946029,3.45974498,3392.8,3392.7,0.2952]
[1735477946437,3.91914498,3392.9,3392.7,0.2952]
[1735477946836,5.74317952,3393.3,3392.7,0.2952]
[1735477946837,11.52212935,3394.5,3393.8,0.29511]
[1735477947036,0.06144261,3393.9,3393.8,9.67291]
[1735477947239,6.15611395,3394.1,3394.0,0.29509]
[1735477947542,6.15611395,3394.1,3394.0,41.09509]
[1735477948344,0.29497,3395.4,3394.8,0.29501]
[1735477949040,0.29497,3395.4,3394.7,3.2078]
[1735477949243,0.29497,3395.4,3394.9,0.29501]
[1735477949540,0.29497,3395.4,3394.8,0.29502]
[1735477949840,0.29497,3395.4,3394.9,0.29501]
[1735477950233,1.3254,3395.5,3394.7,7.83682198]
[1735477950538,0.29497,3395.4,3394.7,7.83682198]
[1735477950733,6.3254,3395.5,3394.7,7.83682198]
[1735477950937,0.29502,3394.8,3394.7,4.62902198]
[1735477951133,0.29502,3394.8,3394.7,1.13402198]
[1735477951329,0.29502,3394.8,3394.4,1.13402198]
[1735477951330,0.29505,3394.5,3394.4,1.13402198]
[1735477952131,0.29507,3394.3,3394.0,0.29509]
[1735477952331,0.29507,3394.3,3394.1,0.29508]
[1735477952534,0.29507,3394.3,3394.0,0.29508]
[1735477952736,3.2078,3394.8,3393.9,3.2078]
[1735477952941,8.2078,3394.8,3393.9,3.5029]
[1735477953340,0.29508,3394.2,3393.9,3.5029]
[1735477954043,0.29507,3394.3,3394.0,0.29508]
[1735477954245,0.29507,3394.2,3394.0,0.29508]
[1735477956244,0.29507,3394.3,3394.1,0.29508]
[1735477956441,0.29507,3394.3,3393.9,3.2078]
[1735477956840,0.29507,3394.3,3394.1,0.29508]
[1735477957041,0.29507,3394.3,3394.0,0.29509]
[1735477957238,0.29507,3394.2,3394.0,0.29509]
[1735477957638,1.3064,3394.7,3393.9,3.2078]
[1735477957842,0.29507,3394.3,3394.1,0.29508]
[1735477959140,0.29508,3394.2,3394.0,0.29509]
[1735477960352,0.29511,3393.8,3393.6,0.29512]
[1735477960739,0.4466,3393.7,3393.6,0.29512]
[1735477962650,0.74172,3393.7,3393.6,0.29512]
[1735477963052,0.4466,3393.7,3393.6,0.29512]
[1735477963653,0.74172,3393.7,3393.6,0.29512]
[1735477963954,0.4466,3393.7,3393.6,0.29512]
[1735477964154,0.74172,3393.7,3393.5,3.2078]
[1735477964353,0.74172,3393.7,3393.6,0.29512]
[1735477964948,0.74172,3393.7,3393.5,3.50292]
[1735477965151,0.4466,3393.7,3393.6,0.29512]
[1735477977460,0.74172,3393.7,3393.6,0.29512]
[1735477981462,0.29512,3393.6,3393.5,3.2078]
[1735477983275,0.29517,3393.1,3392.9,3.2078]
[1735477983572,0.29518,3393.0,3392.9,3.2078]
[1735477983871,0.75368,3393.0,3392.9,3.50299]
[1735477984771,0.75368,3393.0,3392.9,3.2078]
[1735477984973,0.75368,3393.0,3392.9,3.50299]
[1735477985467,0.75368,3393.0,3392.9,3.2078]
[1735477986864,0.29521,3392.6,3392.5,3.50301]
[1735477987569,0.8888,3392.9,3392.5,3.2078]
[1735477987775,0.29521,3392.7,3392.6,0.29521]
[1735477989170,0.29521,3392.7,3392.3,0.876]
[1735477989371,0.29521,3392.7,3392.5,0.29521]
[1735477991177,0.29522,3392.6,3392.4,0.29522]
[1735477991377,0.29522,3392.6,3392.5,0.29522]
[1735477992279,0.29521,3392.7,3392.5,0.29522]
[1735477993275,0.29519,3392.8,3392.5,0.29522]
[1735477993476,0.29521,3392.7,3392.5,0.29522]
[1735477994878,0.29521,3392.6,3392.5,0.29522]
[1735477998093,4.0966,3392.9,3392.3,0.4406]
[1735477998094,0.29521,3392.7,3392.6,0.29521]
[1735478003489,0.8888,3392.9,3392.3,0.4406]
[1735478003687,0.29523,3392.5,3392.4,0.29522]
[1735478004186,0.29522,3392.6,3392.5,0.29521]
[1735478007987,0.29523,3392.4,3392.3,0.4406]
[1735478008185,0.29523,3392.4,3392.3,0.73584]
[1735478008388,0.29523,3392.4,3392.3,0.4406]
[1735478008684,0.29523,3392.4,3392.3,0.73584]
[1735478010587,0.29523,3392.4,3392.3,0.4406]
[1735478010791,0.73801,3392.8,3392.2,3.2078]
[1735478010991,0.29524,3392.3,3392.2,3.2078]
[1735478013188,0.29519,3392.8,3392.5,0.29521]
[1735478013490,3.2078,3392.9,3392.3,0.4495]
[1735478013689,0.29523,3392.4,3392.3,0.74473]
[1735478016094,0.29523,3392.5,3392.4,0.29522]
[1735478020797,0.4529,3392.7,3392.3,0.4495]
[1735478020993,0.29523,3392.4,3392.3,0.74473]
[1735478021697,0.4529,3392.7,3392.3,0.4495]
[1735478022296,0.29523,3392.5,3392.4,0.29523]
[1735478023397,0.4529,3392.7,3392.3,0.4495]
[1735478023592,0.29523,3392.4,3392.3,0.74473]
[1735478024798,0.4529,3392.7,3392.3,0.4495]
[1735478025099,0.29523,3392.5,3392.4,0.29522]
[1735478025498,0.4436,3393.0,3392.3,0.4495]
[1735478025694,0.4436,3393.0,3392.5,3.2078]
[1735478025899,0.73878,3393.0,3392.9,0.29519]
[1735478026297,0.29518,3393.0,3392.9,0.29519]
[1735478029206,0.29516,3393.2,3393.1,0.29516]
[1735478029509,0.29517,3393.1,3393.0,0.29517]
[1735478030303,3.2078,3393.3,3393.2,0.29516]
[1735478030805,0.29511,3393.9,3393.7,0.29511]
[1735478031198,1.3086,3394.1,3393.7,0.29511]
[1735478031402,0.29512,3393.7,3393.6,0.29512]
[1735478032504,1.3086,3394.1,3393.7,0.29511]
[1735478032807,0.29511,3393.8,3393.7,0.29511]
[1735478034210,0.29509,3394.0,3393.9,0.29509]
[1735478034809,0.72828,3394.1,3394.0,0.29509]
[1735478035004,0.29508,3394.1,3394.0,0.29509]
[1735478035199,3.50286,3394.4,3394.2,0.29507]
[1735478035708,3.50286,3394.4,3393.6,0.442]
[1735478035709,3.2078,3394.4,3393.6,0.442]
[1735478036011,3.50286,3394.4,3394.2,0.29506]
[1735478036804,0.29506,3394.4,3394.2,0.29506]
[1735478037410,0.29506,3394.4,3394.0,0.29509]
[1735478037609,0.29506,3394.4,3394.2,0.29507]
[1735478038499,0.8607,3394.5,3394.2,0.29507]
[1735478038702,0.29506,3394.3,3394.2,0.29507]
[1735478038911,0.29507,3394.2,3394.1,0.76068]
[1735478039203,0.8607,3394.5,3394.1,0.4656]
[1735478039408,0.29506,3394.4,3394.2,0.29507]
[1735478040209,0.8607,3394.5,3394.3,0.29506]
[1735478040210,1.15575,3394.5,3394.3,0.29506]
[1735478040405,0.8607,3394.5,3394.3,0.29506]
[1735478040711,0.29505,3394.4,3394.3,0.29506]
[1735478041207,0.8607,3394.5,3394.2,0.75417]
[1735478041413,0.29506,3394.3,3394.2,1.18537]
[1735478042010,0.29506,3394.3,3394.2,0.72627]
[1735478042609,0.29508,3394.1,3394.0,0.29508]
[1735478043111,0.29508,3394.2,3394.0,0.29508]
[1735478043311,0.29508,3394.2,3393.9,3.639]
[1735478043312,0.29508,3394.2,3394.1,0.29508]
[1735478043907,0.29507,3394.3,3394.1,0.29507]
[1735478044313,0.29509,3394.0,3393.9,3.639]
[1735478044714,0.29509,3394.0,3393.9,3.9341]
[1735478045413,0.29508,3394.1,3394.0,0.29509]
[1735478045625,0.29506,3394.4,3394.3,0.29506]
[1735478047615,1.15575,3394.5,3394.4,0.29505]
[1735478047811,0.8607,3394.5,3394.4,0.29505]
[1735478048016,0.29503,3394.7,3394.6,0.29503]
[1735478050410,0.8876,3394.8,3394.7,0.29503]
[1735478051322,3.2078,3395.0,3394.7,0.29503]
[1735478051323,0.295,3395.0,3394.7,3.2078]
[1735478051619,0.295,3395.1,3395.0,0.295]
[1735478052723,1.3322,3395.4,3394.7,3.2078]
[1735478052922,0.29501,3394.9,3394.8,0.29502]
[1735478053922,1.3322,3395.4,3394.7,3.2078]
[1735478054125,0.8648,3394.8,3394.4,0.4436]
[1735478054423,0.295,3395.0,3394.4,1.18124]
[1735478054718,0.295,3395.0,3394.9,0.29501]
[1735478056523,0.29502,3394.9,3394.8,0.29502]
[1735478058018,0.29502,3394.8,3394.7,3.2078]
[1735478058324,0.29503,3394.7,3394.6,0.29503]
[1735478059517,0.4395,3395.1,3394.5,40.8]
[1735478059728,0.29501,3395.0,3394.9,0.295]
[1735478060918,0.7345,3395.1,3395.0,0.295]
[1735478061121,0.4395,3395.1,3395.0,0.295]
[1735478061321,0.73449,3395.1,3395.0,0.295]
[1735478062525,0.73449,3395.1,3394.9,0.74201]
[1735478062526,0.295,3395.0,3394.9,0.74201]
[1735478063229,0.29502,3394.9,3394.8,0.29501]
[1735478063430,0.29501,3395.0,3394.9,0.295]
[1735478067430,0.29502,3394.9,3394.8,0.29502]
[1735478069429,0.29502,3394.8,3394.7,3.2078]
[1735478072431,0.29503,3394.7,3394.6,0.447]
[1735478072729,0.75823,3394.7,3394.6,0.447]
[1735478072931,0.75823,3394.7,3394.6,0.74204]
[1735478079823,0.4632,3394.7,3394.6,0.74204]
[1735478081033,0.4395,3395.1,3394.6,0.447]
[1735478081234,0.7345,3395.1,3395.0,0.295]
[1735478083440,0.4395,3395.1,3395.0,0.295]
[1735478083937,0.72159,3395.2,3395.1,0.29499]
[1735478085140,0.295,3395.1,3395.0,0.295]
[1735478086940,0.29502,3394.9,3394.8,0.29501]
[1735478087239,0.4266,3395.2,3394.9,0.29501]
[1735478087240,0.29501,3395.0,3394.9,0.29501]
[1735478088244,0.4266,3395.2,3394.7,3.2078]
[1735478088444,0.295,3395.1,3394.7,3.2078]
[1735478088645,0.295,3395.1,3395.0,0.295]
[1735478092949,0.295,3395.1,3395.0,4.91393254]
[1735478094967,3.2078,3395.7,3395.0,4.61893254]
[1735478095254,0.29498,3395.4,3395.3,0.29497]
[1735478096047,0.8799,3395.6,3395.2,4.61893254]
[1735478096449,0.29497,3395.4,3395.3,0.29497]
[1735478097242,0.29496,3395.5,3395.4,0.29496]
[1735478097547,0.29497,3395.4,3395.3,0.29497]
[1735478098843,3.2078,3395.7,3395.2,4.61893254]
[1735478099141,6.3761775,3396.0,3395.5,3.2078]
[1735478099347,0.29494,3395.7,3395.6,0.74655]
[1735478100359,6.3761775,3396.0,3395.6,0.4516]
[1735478100845,0.29494,3395.7,3395.6,0.4516]
[1735478101654,0.29494,3395.7,3395.6,0.9038]
[1735478101851,0.29494,3395.7,3395.6,0.4516]
[1735478102253,0.29495,3395.6,3395.5,3.2078]
[1735478102453,0.71745,3395.6,3395.5,3.2078]
[1735478103058,6.3761775,3396.0,3395.5,3.2078]
[1735478103259,0.29493,3395.8,3395.7,0.29494]
[1735478103557,6.7986775,3396.0,3395.5,3.2078]
[1735478103860,0.29494,3395.7,3395.6,0.29495]
[1735478108456,6.7986775,3396.0,3395.4,3.2078]
[1735478108756,0.29496,3395.5,3395.4,3.50276]
[1735478108962,0.29496,3395.5,3395.4,3.2078]
[1735478109350,0.29496,3395.6,3395.5,0.29495]
[1735478110261,0.29494,3395.7,3395.4,3.2078]
[1735478110558,0.29494,3395.7,3395.6,0.29495]
[1735478110949,0.29496,3395.6,3395.5,0.29495]
[1735478111260,0.4304,3395.6,3395.4,3.2078]
[1735478111447,0.72926,3395.5,3395.4,3.50276]
[1735478113755,0.4304,3395.6,3395.4,3.2078]
[1735478113950,0.29495,3395.7,3395.6,0.29495]
[1735478114358,0.29495,3395.7,3395.6,41.09495]
[1735478114859,0.8677,3395.9,3395.6,40.8]
[1735478115161,1.16263,3395.9,3395.8,0.29493]
[1735478120666,0.8677,3395.9,3395.8,0.29493]
[1735478120867,6.3761775,3396.0,3395.9,0.29492]
[1735478121954,1.21119,3396.3,3395.9,3.2078]
[1735478122160,1.21119,3396.3,3396.2,0.2949]
[1735478122360,0.2949,3396.2,3396.1,0.2949]
[1735478122760,1.21119,3396.3,3396.2,0.2949]
[1735478123168,0.9163,3396.3,3396.2,0.2949]
[1735478123465,3.2078,3396.5,3396.4,0.29488]
[1735478127673,0.29489,3396.3,3396.2,0.29489]
[1735478127861,0.8514,3396.4,3396.0,5.97123254]
[1735478128173,0.29491,3396.1,3396.0,5.52003254]
[1735478128472,0.29491,3396.1,3396.0,1.19602]
[1735478129769,0.4546,3396.3,3396.0,0.9011]
[1735478129975,0.74949,3396.3,3396.2,0.2949]
[1735478130272,3.2078,3396.5,3396.3,0.29489]
[1735478130476,3.50267,3396.5,3396.4,0.29488]
[1735478130665,0.29488,3396.4,3396.3,0.29489]
[1735478130871,0.4318,3396.4,3396.0,1.3494]
[1735478131070,0.29491,3396.1,3396.0,1.64431]
[1735478131268,0.9109,3396.3,3396.0,1.3494]
[1735478131474,0.74869,3396.3,3396.2,0.2949]
[1735478132872,0.4538,3396.3,3396.2,0.2949]
[1735478134569,0.4318,3396.4,3396.3,0.29489]
[1735478135772,0.72668,3396.4,3396.3,0.29489]
[1735478136276,0.29487,3396.6,3396.3,3.2078]
[1735478136473,0.72197,3396.6,3396.5,0.29487]
[1735478137376,0.4271,3396.6,3396.3,3.2078]
[1735478137679,0.29488,3396.4,3396.3,3.50268]
[1735478137878,0.29488,3396.5,3396.4,0.29488]
[1735478138583,0.29488,3396.4,3396.3,3.2078]
[1735478143682,0.4271,3396.6,3396.1,0.2949]
[1735478143982,0.2949,3396.2,3396.1,0.2949]
[1735478144477,0.7576,3396.2,3396.1,0.2949]
[1735478144680,0.29491,3396.1,3396.0,4.40381]
[1735478144980,0.74771,3396.1,3396.0,4.40381]
[1735478149087,0.4528,3396.1,3396.0,4.40381]
[1735478149987,0.74771,3396.1,3396.0,4.40381]
[1735478152189,0.74771,3396.1,3396.0,1.19601]
[1735478152392,0.74771,3396.1,3396.0,4.40381]
[1735478154889,0.74771,3396.1,3396.0,1.19601]
[1735478155190,0.74771,3396.1,3396.0,9.02274254]
[1735478155887,0.74771,3396.1,3396.0,5.81494254]
[1735478156386,0.74771,3396.1,3396.0,9.02274254]
[1735478157991,0.74771,3396.1,3396.0,8.26743254]
[1735478158587,0.74771,3396.1,3396.0,7.82673254]
[1735478159788,0.74771,3396.1,3396.0,3.2078]
[1735478162085,0.29492,3395.9,3395.8,0.74543]
[1735478163191,0.7576,3396.2,3396.1,0.29491]
[1735478163585,0.4627,3396.2,3395.8,0.4505]
[1735478163792,0.29492,3396.0,3395.9,0.29491]
[1735478164192,0.4627,3396.2,3395.8,0.4505]
[1735478164399,0.29491,3396.1,3396.0,0.29491]
[1735478166598,0.7576,3396.2,3396.1,0.29491]
[1735478166800,0.2949,3396.2,3396.1,0.29491]
[1735478167702,0.4592,3396.4,3396.3,0.29489]
[1735478167900,0.29488,3396.5,3396.4,0.29488]
[1735478169495,0.29486,3396.6,3396.5,0.29487]
[1735478169696,0.29488,3396.5,3396.4,0.29488]
[1735478173203,0.29488,3396.4,3396.3,4.91381254]
[1735478175200,0.4556,3396.7,3396.3,4.61893254]
[1735478175395,0.29488,3396.5,3396.4,0.29488]
[1735478176698,0.29488,3396.4,3396.3,4.91381254]